fUST/lending_fUST_20250602
["ID","MTS","AMOUNT","RATE_DAILY","PERIOD"]
[363710742,1748836763692,-590.77,0.00019084,2]
[363710743,1748836763713,-430.0,0.00019084,2]
[363710744,1748836763739,-498.95,0.00019084,2]
[363710745,1748836763761,-430.0,0.00019084,2]
[363710746,1748836763783,-430.0,0.00019084,2]
[363710747,1748836763805,-430.0,0.00019084,2]
[363710748,1748836763829,-430.0,0.00019084,2]
[363710749,1748836763853,-430.0,0.00019084,2]
[363710750,1748836763876,-430.0,0.00019084,2]
[363710751,1748836763899,-434.91175788,0.00019084,2]
[363710752,1748836763920,-438.86606368,0.00019084,2]
[363710753,1748836763942,-430.0,0.00019084,2]
[363710754,1748836763964,-430.0,0.00019084,2]
[363710755,1748836763986,-430.0,0.00019084,2]
[363710756,1748836764009,-430.0,0.00019084,2]
[363710757,1748836764031,-430.0,0.00019084,2]
[363710758,1748836764053,-430.0,0.00019084,2]
[363710759,1748836764074,-450.09483473,0.00019084,2]
[363710760,1748836764096,-430.0,0.00019084,2]
[363710761,1748836764119,-500.0,0.00019084,2]
[363710762,1748836764140,-181.08896332,0.00019084,2]
[363710763,1748836764162,-430.0,0.00019084,2]
[363710764,1748836764187,-430.0,0.00019084,2]
[363710765,1748836764209,-430.0,0.00019084,2]
[363710766,1748836764231,-440.71709384,0.00019084,2]
[363710767,1748836764253,-255.52723089,0.00019084,2]
[363710768,1748836844262,217.100284,0.00013699,2]
[363710772,1748837169576,-249.52869692,0.00016,2]
[363710773,1748837171756,-181.16,0.00016,2]
[363710774,1748837173899,-303.55392084,0.00016,2]
[363710776,1748837334250,-432.0,0.0001584,2]
[363710777,1748837335782,-189.85300442,0.0001584,2]
[363710778,1748837341656,-167.347726,0.0001584,2]
[363710779,1748837343793,-262.40209256,0.0001584,2]
[363710780,1748837349872,-153.56906213,0.0001584,2]
[363710781,1748837352597,-282.52145698,0.0001584,2]
[363710782,1748837357828,-217.99242621,0.0001584,2]
[363710783,1748837360891,-263.78878398,0.0001584,2]
[363710784,1748837365971,-250.10316564,0.0001584,2]
[363710786,1748837368060,-154.47117081,0.0001584,2]
[363710787,1748837398383,-301.72121819,0.000158,2]
[363710788,1748837399928,-173.52088538,0.000158,2]
[363710789,1748837406308,-157.90957491,0.000158,2]
[363710790,1748837407964,-152.0,0.000158,2]
[363710792,1748837413692,-255.11607998,0.000158,2]
[363710793,1748837416780,-156.63888565,0.000158,2]
[363710794,1748837423198,-159.05788085,0.000158,2]
[363710796,1748837430636,-270.12733927,0.000158,2]
[363710805,1748837432601,-3182.58993651,0.000158,2]
[363710806,1748837432611,-2625.95111127,0.0001584,2]
[363710807,1748837432621,-2541.75738224,0.00016,2]
[363710808,1748837432630,-250.0,0.00017596,2]
[363710809,1748837432640,-3200.0,0.000178,2]
[363710810,1748837432650,-813.65973719,0.000179,2]
[363710811,1748837432660,-813.65973719,0.00018107,2]
[363710812,1748837432671,-813.65973719,0.00018314,2]
[363710813,1748837432681,-813.65973719,0.00018521,2]
[363710814,1748837432691,-813.65973719,0.00018728,2]
[363710815,1748837432701,-2002.06373731,0.000189,2]
[363710816,1748837432712,-813.65973719,0.00018934,2]
[363710818,1748837432723,-167.84415729,0.00018984,2]
[363710819,1748837432732,-1200.0,0.00019033,2]
[363710820,1748837432741,-430.0,0.00019082,2]
[363710822,1748837432751,-639.41,0.00019082,2]
[363710823,1748837432761,-430.0,0.00019082,2]
[363710824,1748837432771,-430.0,0.00019082,2]
[363710825,1748837432781,-430.0,0.00019082,2]
[363710826,1748837432791,-532.53,0.00019082,2]
[363710827,1748837432801,-430.0,0.00019082,2]
[363710828,1748837432810,-430.0,0.00019082,2]
[363710829,1748837432819,-430.0,0.00019082,2]
[363710830,1748837432830,-430.0,0.00019083,2]
[363710831,1748837432840,-430.0,0.00019083,2]
[363710832,1748837432851,-430.0,0.00019083,2]
[363710833,1748837432861,-430.0,0.00019083,2]
[363710834,1748837432872,-156.12328826,0.00019083,2]
[363710835,1748837432881,-500.0,0.00019083,2]
[363710836,1748837432891,-430.0,0.00019083,2]
[363710837,1748837432901,-430.0,0.00019083,2]
[363710838,1748837432911,-430.0,0.00019083,2]
[363710839,1748837432921,-430.0,0.00019083,2]
[363710840,1748837432932,-430.0,0.00019083,2]
[363710841,1748837433136,-481.76,0.00019083,2]
[363710842,1748837433147,-430.0,0.00019083,2]
[363710843,1748837433158,-430.0,0.00019083,2]
[363710844,1748837433168,-430.0,0.00019083,2]
[363710845,1748837433178,-430.0,0.00019083,2]
[363710846,1748837433188,-430.0,0.00019083,2]
[363710847,1748837433198,-554.94469195,0.00019083,2]
[363710848,1748837433209,-739.66,0.00019083,2]
[363710849,1748837433219,-442.24310403,0.00019083,2]
[363710850,1748837433229,-430.0,0.00019083,2]
[363710852,1748837433239,-474.48,0.00019083,2]
[363710855,1748837433250,-430.0,0.00019083,2]
[363710857,1748837433260,-430.0,0.00019083,2]
[363710859,1748837433270,-430.0,0.00019083,2]
[363710861,1748837433279,-817.39,0.00019083,2]
[363710863,1748837433290,-430.0,0.00019083,2]
[363710865,1748837433300,-430.0,0.00019083,2]
[363710867,1748837433310,-430.0,0.00019083,2]
[363710869,1748837433320,-430.0,0.00019083,2]
[363710871,1748837433329,-430.0,0.00019083,2]
[363710872,1748837433339,-430.0,0.00019083,2]
[363710873,1748837433349,-430.0,0.00019083,2]
[363710874,1748837433359,-430.0,0.00019083,2]
[363710875,1748837433369,-430.0,0.00019083,2]
[363710876,1748837433379,-430.0,0.00019083,2]
[363710877,1748837433389,-744.05,0.00019083,2]
[363710878,1748837433400,-430.0,0.00019083,2]
[363710879,1748837433410,-430.0,0.00019083,2]
[363710880,1748837433420,-279.40531921,0.00019083,2]
[363710881,1748837433430,-430.0,0.00019083,2]
[363710882,1748837433440,-500.0,0.00019083,2]
[363710883,1748837433450,-459.14610629,0.00019083,2]
[363710884,1748837433459,-432.24420588,0.00019083,2]
[363710885,1748837433470,-303.55392084,0.00019083,2]
[363710886,1748837433481,-357.20073042,0.00019083,2]
[363710887,1748837433491,-430.0,0.00019084,2]
[363710888,1748837433501,-453.34344729,0.00019084,2]
[363710889,1748837433511,-430.0,0.00019084,2]
[363710890,1748837433521,-364.50839689,0.00019084,2]
[363710891,1748837433531,-443.36372963,0.00019084,2]
[363710892,1748837433540,-473.16766895,0.00019084,2]
[363710893,1748837433550,-441.4944056,0.00019084,2]
[363710894,1748837433560,-440.56985517,0.00019084,2]
[363710895,1748837433569,-572.71379207,0.00019084,2]
[363710896,1748837433579,-458.59034093,0.00019084,2]
[363710897,1748837433589,-447.22251886,0.00019084,2]
[363710898,1748837433599,-470.28289767,0.00019084,2]
[363710899,1748837433609,-466.08576829,0.00019084,2]
[363710900,1748837433619,-303.62068225,0.00019084,2]
[363710901,1748837433629,-430.0,0.00019084,2]
[363710902,1748837433639,-472.04130295,0.00019084,2]
[363710903,1748837433649,-275.9421114,0.00019084,2]
[363710904,1748837433659,-430.0,0.00019084,2]
[363710905,1748837433669,-457.56282289,0.00019084,2]
[363710906,1748837433679,-455.20925586,0.00019084,2]
[363710907,1748837433689,-449.04560754,0.00019084,2]
[363710908,1748837433699,-447.01612401,0.00019084,2]
[363710909,1748837433709,-328.40474546,0.00019084,2]
[363710910,1748837433719,-536.39641322,0.00019084,2]
[363710911,1748837433729,-430.0,0.00019084,2]
[363710912,1748837433740,-430.0,0.00019084,2]
[363710913,1748837433750,-430.0,0.00019084,2]
[363710914,1748837433760,-430.0,0.00019084,2]
[363710915,1748837433771,-430.0,0.00019084,2]
[363710916,1748837433781,-430.0,0.00019084,2]
[363710917,1748837433790,-430.0,0.00019084,2]
[363710918,1748837433800,-430.0,0.00019084,2]
[363710919,1748837433810,-430.0,0.00019084,2]
[363710920,1748837433820,-498.98551048,0.00019084,2]
[363710921,1748837433830,-430.0,0.00019084,2]
[363710922,1748837433840,-430.0,0.00019084,2]
[363710923,1748837433851,-430.0,0.00019084,2]
[363710924,1748837433860,-481.85643251,0.00019084,2]
[363710925,1748837433871,-480.87527329,0.00019084,2]
[363710926,1748837433880,-430.0,0.00019084,2]
[363710927,1748837433891,-450.19446554,0.00019084,2]
[363710928,1748837433901,-528.25796201,0.00019084,2]
[363710929,1748837433911,-438.54701923,0.00019084,2]
[363710930,1748837433921,-430.0,0.00019084,2]
[363710931,1748837433933,-443.09079393,0.00019084,2]
[363710932,1748837433943,-430.0,0.00019084,2]
[363710933,1748837433953,-430.0,0.00019084,2]
[363710934,1748837433963,-439.3461718,0.00019084,2]
[363710935,1748837433974,-553.42206027,0.00019084,2]
[363710936,1748837433984,-430.0,0.00019084,2]
[363710937,1748837433994,-430.0,0.00019084,2]
[363710938,1748837434004,-430.0,0.00019084,2]
[363710939,1748837434014,-430.0,0.00019084,2]
[363710940,1748837434024,-430.0,0.00019084,2]
[363710941,1748837434034,-430.0,0.00019084,2]
[363710942,1748837434045,-430.0,0.00019084,2]
[363710943,1748837434055,-430.0,0.00019084,2]
[363710944,1748837434064,-430.0,0.00019084,2]
[363710945,1748837434074,-430.0,0.00019084,2]
[363710946,1748837434084,-430.0,0.00019084,2]
[363710947,1748837434093,-430.0,0.00019084,2]
[363710948,1748837434103,-430.0,0.00019084,2]
[363710949,1748837434113,-430.0,0.00019084,2]
[363710950,1748837434123,-430.0,0.00019084,2]
[363710951,1748837434133,-430.0,0.00019084,2]
[363710952,1748837434143,-430.0,0.00019084,2]
[363710953,1748837434154,-430.0,0.00019084,2]
[363710954,1748837434164,-430.0,0.00019084,2]
[363710955,1748837434174,-272.79873582,0.00019084,2]
[363710956,1748837434184,-430.0,0.00019084,2]
[363710957,1748837434194,-452.46870699,0.00019084,2]
[363710958,1748837434204,-480.25570229,0.00019084,2]
[363710959,1748837434215,-430.0,0.00019084,2]
[363710960,1748837434226,-430.0,0.00019084,2]
[363710961,1748837434236,-549.09704139,0.00019084,2]
[363710962,1748837434247,-430.0,0.00019084,2]
[363710963,1748837434257,-430.0,0.00019084,2]
[363710964,1748837434267,-430.0,0.00019084,2]
[363710965,1748837434277,-444.00965212,0.00019084,2]
[363710966,1748837434287,-430.0,0.00019084,2]
[363710967,1748837434298,-209.30534601,0.00019084,2]
[363710968,1748837434308,-430.0,0.00019084,2]
[363710969,1748837434318,-430.0,0.00019084,2]
[363710970,1748837434330,-430.0,0.00019084,2]
[363710971,1748837434340,-430.0,0.00019084,2]
[363710972,1748837434349,-458.98179286,0.00019084,2]
[363710973,1748837434359,-438.58183912,0.00019084,2]
[363710974,1748837434369,-346.90952662,0.00019084,2]
[363710975,1748837434379,-430.0,0.00019084,2]
[363710976,1748837434390,-430.0,0.00019084,2]
[363710977,1748837434400,-402.74087749,0.00019084,2]
[363710978,1748837434410,-530.51537577,0.00019084,2]
[363710979,1748837434419,-430.0,0.00019084,2]
[363710980,1748837434429,-430.0,0.00019084,2]
[363710981,1748837434439,-469.06980403,0.00019084,2]
[363710982,1748837434449,-430.0,0.00019084,2]
[363710983,1748837434459,-468.80741264,0.00019084,2]
[363710984,1748837434469,-430.0,0.00019084,2]
[363710985,1748837434479,-353.47926813,0.00019084,2]
[363710986,1748837434489,-435.55230765,0.00019084,2]
[363710987,1748837434499,-430.0,0.00019084,2]
[363710988,1748837434509,-444.78993567,0.00019084,2]
[363710989,1748837434519,-459.78178476,0.00019084,2]
[363710990,1748837434529,-430.0,0.00019084,2]
[363710991,1748837434539,-430.0,0.00019084,2]
[363710992,1748837434550,-389.0379156,0.00019084,2]
[363710993,1748837434560,-442.18011911,0.00019084,2]
[363710994,1748837434570,-443.86399462,0.00019084,2]
[363710995,1748837434581,-439.71912054,0.00019084,2]
[363710996,1748837434591,-437.82012248,0.00019084,2]
[363710997,1748837434600,-430.0,0.00019084,2]
[363710998,1748837434610,-250.02680162,0.00019084,2]
[363710999,1748837434620,-443.25480956,0.00019084,2]
[363711000,1748837434630,-437.74606238,0.00019084,2]
[363711001,1748837434641,-430.0,0.00019084,2]
[363711002,1748837434651,-430.0,0.00019084,2]
[363711003,1748837434661,-230.37488434,0.00019084,2]
[363711004,1748837434670,-451.30749038,0.00019084,2]
[363711005,1748837434679,-441.50966124,0.00019084,2]
[363711006,1748837434689,-430.0,0.00019084,2]
[363711007,1748837434700,-452.26093416,0.00019084,2]
[363711008,1748837434710,-436.6335671,0.00019084,2]
[363711009,1748837434721,-473.58332391,0.00019084,2]
[363711010,1748837434731,-203.01830762,0.00019084,2]
[363711011,1748837434742,-443.39317484,0.00019084,2]
[363711012,1748837434753,-432.79503236,0.00019084,2]
[363711013,1748837434762,-433.95932758,0.00019084,2]
[363711014,1748837434773,-430.0,0.00019084,2]
[363711015,1748837434783,-434.96511492,0.00019084,2]
[363711016,1748837434793,-442.23065954,0.00019084,2]
[363711017,1748837434803,-437.48863402,0.00019084,2]
[363711018,1748837434814,-435.69290196,0.00019084,2]
[363711019,1748837434824,-309.24086005,0.00019084,2]
[363711020,1748837434835,-413.42694037,0.00019084,2]
[363711021,1748837434845,-436.9226561,0.00019084,2]
[363711022,1748837434856,-292.38738456,0.00019084,2]
[363711023,1748837434866,-481.6683806,0.00019084,2]
[363711024,1748837434876,-438.07547243,0.00019084,2]
[363711025,1748837434886,-437.22991149,0.00019084,2]
[363711026,1748837434896,-432.25929326,0.00019084,2]
[363711027,1748837434906,-441.50488463,0.00019084,2]
[363711028,1748837434915,-438.48335332,0.00019084,2]
[363711029,1748837434925,-435.93316215,0.00019084,2]
[363711030,1748837434939,-454.21279374,0.00019084,2]
[363711031,1748837434949,-339.8395354,0.00019084,2]
[363711032,1748837434961,-457.0798373,0.00019084,2]
[363711033,1748837434973,-459.61637946,0.00019084,2]
[363711034,1748837434984,-409.17495886,0.00019084,2]
[363711035,1748837434993,-430.0,0.00019084,2]
[363711036,1748837435004,-439.18212695,0.00019084,2]
[363711037,1748837435015,-438.09605428,0.00019084,2]
[363711038,1748837435024,-349.69842894,0.00019084,2]
[363711039,1748837435034,-452.07396293,0.00019084,2]
[363711040,1748837435044,-435.12578765,0.00019084,2]
[363711041,1748837435054,-412.50701214,0.00019084,2]
[363711042,1748837435064,-430.0,0.00019084,2]
[363711043,1748837435074,-430.0,0.00019084,2]
[363711044,1748837435083,-443.35532646,0.00019084,2]
[363711045,1748837435093,-500.0,0.00019084,2]
[363711046,1748837435103,-500.0,0.00019084,2]
[363711047,1748837435114,-430.0,0.00019084,2]
[363711048,1748837435124,-564.39349684,0.00019084,2]
[363711049,1748837435134,-465.83897251,0.00019084,2]
[363711050,1748837435144,-240.81173414,0.00019084,2]
[363711051,1748837435153,-437.77962747,0.00019084,2]
[363711052,1748837435163,-347.93501229,0.00019084,2]
[363711053,1748837435173,-404.12276768,0.00019084,2]
[363711054,1748837435182,-430.0,0.00019084,2]
[363711055,1748837435192,-438.97375871,0.00019084,2]
[363711056,1748837435202,-430.0,0.00019084,2]
[363711057,1748837435212,-381.75032384,0.00019084,2]
[363711058,1748837435222,-441.03109667,0.00019084,2]
[363711059,1748837435232,-515.36846446,0.00019084,2]
[363711060,1748837435242,-430.0,0.00019084,2]
[363711061,1748837435252,-430.0,0.00019084,2]
[363711062,1748837435262,-435.53669311,0.00019084,2]
[363711063,1748837435271,-552.63716572,0.00019084,2]
[363711064,1748837435281,-453.10293168,0.00019084,2]
[363711065,1748837435291,-430.0,0.00019084,2]
[363711066,1748837435301,-430.0,0.00019084,2]
[363711067,1748837435310,-436.38140093,0.00019084,2]
[363711068,1748837435320,-451.44890983,0.00019084,2]
[363711069,1748837435329,-430.0,0.00019084,2]
[363711070,1748837435339,-445.51749135,0.00019084,2]
[363711071,1748837435348,-324.88649336,0.00019084,2]
[363711072,1748837435359,-155.0,0.00019084,2]
[363711073,1748837435368,-433.00516804,0.00019084,2]
[363711074,1748837435378,-438.11023746,0.00019084,2]
[363711075,1748837435387,-436.53179164,0.00019084,2]
[363711076,1748837435398,-430.0,0.00019084,2]
[363711077,1748837435408,-445.2563794,0.00019084,2]
[363711078,1748837435419,-430.0,0.00019084,2]
[363711079,1748837435430,-430.0,0.00019084,2]
[363711080,1748837435440,-430.0,0.00019084,2]
[363711081,1748837435451,-440.17184937,0.00019084,2]
[363711082,1748837435462,-430.0,0.00019084,2]
[363711083,1748837435472,-477.99153917,0.00019084,2]
[363711084,1748837435482,-445.53559663,0.00019084,2]
[363711085,1748837435491,-435.45894896,0.00019084,2]
[363711086,1748837435501,-450.21283115,0.00019084,2]
[363711087,1748837435510,-161.62111063,0.00019084,2]
[363711088,1748837435522,-495.91453557,0.00019084,2]
[363711089,1748837435532,-446.50383949,0.00019084,2]
[363711090,1748837435541,-448.60435069,0.00019084,2]
[363711091,1748837435551,-5501.39385357,0.000191,2]
[363711092,1748837435561,-813.65973719,0.00019141,2]
[363711093,1748837435571,-424.94,0.00019178,2]
[363711094,1748837435580,-164.641114,0.00019178,2]
[363711095,1748837435589,-813.65973719,0.00019348,2]
[363711096,1748837435599,-430.0,0.00019356,2]
[363711097,1748837435609,-639.41,0.00019356,2]
[363711098,1748837435619,-430.0,0.00019356,2]
[363711099,1748837435628,-430.0,0.00019356,2]
[363711100,1748837435637,-532.53,0.00019356,2]
[363711101,1748837435647,-430.0,0.00019356,2]
[363711102,1748837435656,-430.0,0.00019356,2]
[363711103,1748837435666,-430.0,0.00019357,2]
[363711104,1748837435675,-430.0,0.00019357,2]
[363711105,1748837435685,-430.0,0.00019357,2]
[363711106,1748837435694,-430.0,0.00019357,2]
[363711107,1748837435704,-500.0,0.00019357,2]
[363711108,1748837435713,-430.0,0.00019357,2]
[363711109,1748837435723,-201.23,0.00019357,2]
[363711110,1748837435732,-430.0,0.00019357,2]
[363711111,1748837435741,-481.76,0.00019357,2]
[363711112,1748837435751,-290.42,0.00019357,2]
[363711113,1748837435760,-430.0,0.00019357,2]
[363711114,1748837435770,-430.0,0.00019357,2]
[363711115,1748837435779,-430.0,0.00019357,2]
[363711116,1748837435789,-739.66,0.00019357,2]
[363711117,1748837435798,-430.0,0.00019357,2]
[363711118,1748837435808,-430.0,0.00019357,2]
[363711119,1748837435818,-817.39,0.00019357,2]
[363711120,1748837435828,-430.0,0.00019357,2]
[363711121,1748837435838,-430.0,0.00019357,2]
[363711122,1748837435848,-430.0,0.00019357,2]
[363711123,1748837435858,-430.0,0.00019357,2]
[363711124,1748837435868,-430.0,0.00019357,2]
[363711125,1748837435878,-430.0,0.00019357,2]
[363711126,1748837435888,-430.0,0.00019357,2]
[363711127,1748837435897,-430.0,0.00019357,2]
[363711128,1748837435907,-430.0,0.00019357,2]
[363711129,1748837435917,-744.05,0.00019357,2]
[363711130,1748837435927,-430.0,0.00019357,2]
[363711131,1748837436044,-430.0,0.00019357,2]
[363711132,1748837436054,-430.0,0.00019357,2]
[363711133,1748837436064,-437.74933422,0.00019358,2]
[363711134,1748837436074,-434.4569948,0.00019358,2]
[363711135,1748837436083,-224.83996485,0.00019358,2]
[363711136,1748837436092,-430.0,0.00019358,2]
[363711137,1748837436102,-458.19156766,0.00019358,2]
[363711138,1748837436111,-483.28808473,0.00019358,2]
[363711139,1748837436121,-442.72994065,0.00019358,2]
[363711140,1748837436130,-457.05545894,0.00019358,2]
[363711141,1748837436140,-503.74492847,0.00019358,2]
[363711142,1748837436149,-430.0,0.00019358,2]
[363711143,1748837436158,-507.16162744,0.00019358,2]
[363711144,1748837436167,-518.13384975,0.00019358,2]
[363711145,1748837436177,-307.5660951,0.00019358,2]
[363711146,1748837436186,-441.63903218,0.00019358,2]
[363711147,1748837436196,-430.0,0.00019358,2]
[363711148,1748837436206,-518.93940588,0.00019358,2]
[363711149,1748837436215,-533.35666473,0.00019358,2]
[363711150,1748837436225,-430.0,0.00019358,2]
[363711151,1748837436234,-463.94134968,0.00019358,2]
[363711152,1748837436244,-505.68785691,0.00019358,2]
[363711153,1748837436253,-430.0,0.00019358,2]
[363711154,1748837436263,-502.45465736,0.00019358,2]
[363711155,1748837436274,-430.0,0.00019358,2]
[363711156,1748837436283,-430.0,0.00019358,2]
[363711157,1748837436293,-455.1236059,0.00019358,2]
[363711158,1748837436303,-501.47678844,0.00019358,2]
[363711159,1748837436313,-430.0,0.00019358,2]
[363711160,1748837436322,-441.42446355,0.00019358,2]
[363711161,1748837436333,-269.04832062,0.00019358,2]
[363711162,1748837436343,-430.0,0.00019358,2]
[363711163,1748837436352,-453.82452413,0.00019358,2]
[363711164,1748837436362,-445.45411671,0.00019358,2]
[363711165,1748837436372,-430.0,0.00019358,2]
[363711166,1748837436382,-430.0,0.00019358,2]
[363711167,1748837436392,-460.20862702,0.00019358,2]
[363711168,1748837436402,-430.0,0.00019358,2]
[363711169,1748837436412,-184.87,0.00019358,2]
[363711170,1748837436421,-452.49395848,0.00019358,2]
[363711171,1748837436431,-528.32884154,0.00019358,2]
[363711172,1748837436441,-430.0,0.00019358,2]
[363711173,1748837436451,-357.48622116,0.00019358,2]
[363711174,1748837436461,-430.0,0.00019358,2]
[363711175,1748837436471,-430.0,0.00019358,2]
[363711176,1748837436481,-430.0,0.00019358,2]
[363711177,1748837436491,-440.95318734,0.00019358,2]
[363711178,1748837436500,-510.28330677,0.00019358,2]
[363711179,1748837436510,-448.8923869,0.00019358,2]
[363711180,1748837436520,-443.26630013,0.00019358,2]
[363711181,1748837436530,-444.99418428,0.00019358,2]
[363711182,1748837436539,-457.71308421,0.00019358,2]
[363711183,1748837436549,-430.0,0.00019358,2]
[363711184,1748837436559,-430.0,0.00019358,2]
[363711185,1748837436569,-430.0,0.00019358,2]
[363711186,1748837436580,-430.0,0.00019358,2]
[363711187,1748837436590,-438.11957888,0.00019358,2]
[363711188,1748837436602,-430.0,0.00019358,2]
[363711189,1748837436612,-430.0,0.00019358,2]
[363711190,1748837436623,-430.0,0.00019358,2]
[363711191,1748837436632,-430.0,0.00019358,2]
[363711192,1748837436642,-430.0,0.00019358,2]
[363711193,1748837436652,-444.78204237,0.00019358,2]
[363711194,1748837436662,-461.70139296,0.00019358,2]
[363711195,1748837436671,-430.0,0.00019358,2]
[363711196,1748837436682,-430.0,0.00019358,2]
[363711197,1748837436692,-261.39543345,0.00019358,2]
[363711198,1748837436701,-448.40437488,0.00019358,2]
[363711199,1748837436712,-441.93081749,0.00019358,2]
[363711200,1748837436722,-500.0,0.00019396,2]
[363711201,1748837436732,-500.0,0.00019396,2]
[363711202,1748837436742,-427.63211096,0.00019396,2]
[363711203,1748837436753,-500.0,0.00019396,2]
[363711204,1748837436762,-500.0,0.00019396,2]
[363711205,1748837436772,-261.31435576,0.00019444,2]
[363711206,1748837436782,-500.0,0.00019455,2]
[363711207,1748837436792,-500.0,0.00019455,2]
[363711208,1748837436801,-3791.38175424,0.00019531,2]
[363711209,1748837436811,-813.65973719,0.00019555,2]
[363711210,1748837436821,-500.0,0.00019586,2]
[363711211,1748837436831,-500.0,0.00019588,2]
[363711212,1748837436841,-459.30900364,0.00019589,2]
[363711213,1748837436850,-456.62984661,0.00019589,2]
[363711214,1748837436859,-284.66905361,0.00019589,2]
[363711215,1748837436869,-205.91845036,0.00019589,2]
[363711216,1748837436879,-430.0,0.00019589,2]
[363711217,1748837436889,-373.63272167,0.00019589,2]
[363711218,1748837436899,-444.86875292,0.00019589,2]
[363711219,1748837436908,-198.95314702,0.00019589,2]
[363711220,1748837436918,-280.43583031,0.00019589,2]
[363711221,1748837436928,-303.79797614,0.00019589,2]
[363711222,1748837436940,-430.0,0.00019589,2]
[363711223,1748837436950,-430.0,0.00019589,2]
[363711224,1748837436959,-455.61811626,0.00019589,2]
[363711225,1748837436971,-430.0,0.00019589,2]
[363711226,1748837436980,-438.54098949,0.00019589,2]
[363711227,1748837436990,-430.0,0.00019589,2]
[363711228,1748837436999,-361.16976536,0.00019589,2]
[363711229,1748837437011,-408.57671542,0.00019589,2]
[363711230,1748837437021,-347.2369385,0.00019589,2]
[363711231,1748837437031,-291.3442616,0.00019589,2]
[363711232,1748837437040,-410.84531466,0.00019589,2]
[363711233,1748837437050,-379.48186606,0.00019589,2]
[363711234,1748837437059,-430.0,0.00019589,2]
[363711235,1748837437069,-460.7062192,0.00019589,2]
[363711236,1748837437078,-430.0,0.00019589,2]
[363711237,1748837437088,-441.69828613,0.00019589,2]
[363711238,1748837437097,-430.0,0.00019589,2]
[363711239,1748837437105,-472.24001214,0.00019589,2]
[363711240,1748837437114,-301.031,0.00019592,2]
[363711241,1748837437123,-500.0,0.00019592,2]
[363711242,1748837437132,-430.0,0.0001963,2]
[363711243,1748837437143,-639.41,0.0001963,2]
[363711244,1748837437152,-430.0,0.0001963,2]
[363711245,1748837437162,-430.0,0.0001963,2]
[363711246,1748837437171,-532.53,0.0001963,2]
[363711247,1748837437180,-430.0,0.0001963,2]
[363711248,1748837437190,-430.0,0.00019631,2]
[363711249,1748837437199,-220.95,0.00019631,2]
[363711250,1748837437208,-481.76,0.00019631,2]
[363711251,1748837437219,-430.0,0.00019631,2]
[363711252,1748837437228,-430.0,0.00019631,2]
[363711253,1748837437238,-430.0,0.00019631,2]
[363711254,1748837437247,-739.66,0.00019631,2]
[363711255,1748837437257,-430.0,0.00019631,2]
[363711256,1748837437266,-430.0,0.00019631,2]
[363711257,1748837437276,-817.39,0.00019631,2]
[363711258,1748837437286,-578.8,0.00019631,2]
[363711259,1748837437295,-430.0,0.00019631,2]
[363711260,1748837437305,-494.78393435,0.00019631,2]
[363711261,1748837437314,-430.0,0.00019631,2]
[363711262,1748837437323,-430.0,0.00019631,2]
[363711263,1748837437332,-430.0,0.00019631,2]
[363711264,1748837437342,-430.0,0.00019631,2]
[363711265,1748837437351,-744.05,0.00019631,2]
[363711266,1748837437361,-430.0,0.00019631,2]
[363711267,1748837437371,-430.0,0.00019631,2]
[363711268,1748837437380,-328.94,0.00019632,2]
[363711269,1748837437390,-246.84851619,0.00019632,2]